fUST/lending_fUST_20250504
["ID","MTS","AMOUNT","RATE_DAILY","PERIOD"]
[359817443,1746358265374,-15286.91386912,0.00038986,7]
[359817444,1746358265383,-151.0,0.00038986,14]
[359817445,1746358265393,-2000.0,0.00039,120]
[359817446,1746358265403,-2000.0,0.00039,120]
[359817447,1746358265475,-9614.0,0.00039,2]
[359817448,1746358265485,-810.93,0.00039,7]
[359817449,1746358265495,-1575.0,0.00039,2]
[359817450,1746358265505,-707.0,0.00039094,2]
[359817451,1746358265515,-403.0,0.00039094,2]
[359817452,1746358265525,-9000.0,0.000392,50]
[359817453,1746358265535,-160.0,0.000393,59]
[359817454,1746358265544,-2000.0,0.00039305,8]
[359817455,1746358265554,-151.0,0.00039314,14]
[359817456,1746358265564,-500.0,0.00039314,30]
[359817457,1746358265574,-500.0,0.00039314,30]
[359817458,1746358265583,-151.0,0.00039314,30]
[359817459,1746358265593,-200.87460184,0.00039314,30]
[359817460,1746358265603,-500.0,0.00039314,30]
[359817461,1746358265612,-151.0,0.00039314,30]
[359817462,1746358265622,-151.0,0.00039314,30]
[359817463,1746358265632,-500.0,0.00039314,30]
[359817464,1746358265641,-151.0,0.00039314,30]
[359817465,1746358265651,-244.09746204,0.00039314,14]
[359817466,1746358265661,-500.0,0.00039314,30]
[359817467,1746358265672,-151.0,0.00039314,30]
[359817468,1746358265682,-151.0,0.00039314,30]
[359817469,1746358265691,-160.60203663,0.00039314,30]
[359817470,1746358265702,-151.0,0.00039314,30]
[359817471,1746358265712,-522.262445,0.00039314,14]
[359817472,1746358265721,-522.262445,0.00039314,14]
[359817473,1746358265730,-165.499178,0.00039314,2]
[359817474,1746358265740,-165.499178,0.00039314,2]
[359817475,1746358265750,-151.0,0.00039314,30]
[359817476,1746358265759,-151.0,0.00039314,30]
[359817477,1746358265768,-151.0,0.00039314,2]
[359817478,1746358265779,-151.0,0.00039314,30]
[359817479,1746358265788,-500.0,0.00039314,30]
[359817480,1746358265798,-151.0,0.00039314,30]
[359817481,1746358265808,-151.0,0.00039314,2]
[359817482,1746358265817,-500.0,0.00039314,30]
[359817483,1746358265827,-500.0,0.00039314,30]
[359817484,1746358265836,-151.0,0.00039314,30]
[359817485,1746358265846,-500.0,0.00039314,30]
[359817486,1746358265856,-151.0,0.00039314,30]
[359817487,1746358265865,-151.0,0.00039314,30]
[359817488,1746358265874,-151.0,0.00039314,30]
[359817489,1746358265884,-666.09,0.00039332,120]
[359817490,1746358265893,-151.0,0.00039399,30]
[359817491,1746358265903,-200.0,0.00039399,30]
[359817492,1746358265912,-160.0,0.000394,59]
[359817493,1746358265923,-27869.46,0.000394,30]
[359817494,1746358265936,-1100.0,0.00039452,2]
[359817496,1746358265947,-500.0,0.00039489,5]
[359817497,1746358265957,-726.48280525,0.000395,30]
[359817498,1746358265967,-1486.48,0.000395,30]
[359817499,1746358265978,-9100.66,0.000395,30]
[359817501,1746358265987,-200.0,0.00039519,120]
[359817502,1746358265997,-666.09,0.00039532,120]
[359817503,1746358266007,-500.0,0.00039588,30]
[359817504,1746358266019,-500.0,0.00039588,30]
[359817505,1746358266029,-151.0,0.00039588,30]
[359817506,1746358266039,-500.0,0.00039588,30]
[359817507,1746358266048,-245.66145855,0.00039588,30]
[359817508,1746358266058,-151.0,0.00039588,30]
[359817509,1746358266067,-500.0,0.00039588,30]
[359817510,1746358266077,-151.0,0.00039588,30]
[359817511,1746358266087,-500.0,0.00039588,30]
[359817512,1746358266096,-151.09706879,0.00039588,30]
[359817513,1746358266105,-184.73932387,0.00039588,30]
[359817514,1746358266115,-216.9317365,0.00039588,30]
[359817515,1746358266124,-151.0,0.00039588,30]
[359817516,1746358266134,-249.73585642,0.00039588,30]
[359817517,1746358266144,-500.0,0.00039588,30]
[359817518,1746358266156,-165.44786822,0.00039588,30]
[359817519,1746358266165,-500.0,0.00039588,30]
[359817520,1746358266175,-500.0,0.00039588,30]
[359817521,1746358266184,-151.0,0.00039588,30]
[359817522,1746358266193,-500.0,0.00039588,30]
[359817523,1746358266203,-151.0,0.00039588,30]
[359817524,1746358266212,-151.18844493,0.00039588,30]
[359817525,1746358266221,-151.0,0.00039588,30]
[359817526,1746358266229,-151.0,0.00039588,14]
[359817527,1746358266239,-151.0,0.00039588,14]
[359817528,1746358266248,-151.0,0.00039588,14]
[359817529,1746358266257,-151.0,0.00039588,14]
[359817530,1746358266266,-151.0,0.00039588,14]
[359817531,1746358266275,-250.0,0.000396,14]
[359817532,1746358266284,-253.9,0.000396,14]
[359817533,1746358266292,-151.0,0.00039601,14]
[359817534,1746358266302,-151.0,0.00039601,14]
[359817535,1746358266311,-151.0,0.00039601,14]
[359817536,1746358266320,-151.0,0.00039601,14]
[359817537,1746358266329,-151.0,0.00039601,14]
[359817538,1746358266338,-151.0,0.00039601,14]
[359817539,1746358266347,-151.0,0.00039601,14]
[359817540,1746358266357,-151.0,0.00039601,14]
[359817541,1746358266366,-151.0,0.00039606,14]
[359817542,1746358266376,-151.0,0.00039606,14]
[359817543,1746358266384,-151.0,0.00039606,14]
[359817544,1746358266394,-155.045786,0.00039606,14]
[359817545,1746358266404,-152.649507,0.00039606,14]
[359817546,1746358266413,-151.0,0.00039606,14]
[359817547,1746358266422,-151.0,0.00039606,14]
[359817548,1746358266431,-151.0,0.00039606,14]
[359817549,1746358266441,-151.0,0.00039606,14]
[359817550,1746358266451,-151.0,0.00039606,14]
[359817551,1746358266460,-184.678645,0.00039606,14]
[359817552,1746358266470,-151.0,0.00039606,14]
[359817553,1746358266480,-153.68626991,0.00039626,15]
[359817554,1746358266489,-500.0,0.00039626,15]
[359817555,1746358266499,-444.99495831,0.00039626,15]
[359817556,1746358266568,-151.0,0.00039627,14]
[359817557,1746358266578,-151.0,0.00039627,14]
[359817558,1746358266587,-151.0,0.00039627,14]
[359817559,1746358266597,-268.179032,0.00039627,14]
[359817560,1746358266607,-232.928956,0.00039627,14]
[359817561,1746358266617,-151.0,0.00039627,14]
[359817562,1746358266627,-151.0,0.00039627,14]
[359817563,1746358266637,-151.0,0.00039627,14]
[359817564,1746358266646,-151.0,0.00039627,14]
[359817565,1746358266656,-151.0,0.00039627,14]
[359817566,1746358266666,-151.0,0.00039627,14]
[359817567,1746358266676,-151.0,0.00039627,14]
[359817568,1746358266685,-151.0,0.00039627,14]
[359817569,1746358266694,-151.0,0.00039627,14]
[359817570,1746358266704,-151.0,0.00039627,14]
[359817571,1746358266714,-151.0,0.00039627,14]
[359817572,1746358266723,-151.0,0.00039627,14]
[359817573,1746358266733,-151.0,0.00039627,14]
[359817574,1746358266742,-187.646093,0.00039627,14]
[359817575,1746358266752,-522.262445,0.00039627,14]
[359817576,1746358266762,-522.262445,0.00039627,14]
[359817577,1746358266771,-522.262445,0.00039627,14]
[359817578,1746358266781,-522.262445,0.00039627,14]
[359817579,1746358266790,-522.262445,0.00039627,14]
[359817580,1746358266800,-522.262445,0.00039627,14]
[359817581,1746358266810,-522.262445,0.00039627,14]
[359817582,1746358266819,-522.262445,0.00039627,14]
[359817583,1746358266829,-522.262445,0.00039627,14]
[359817584,1746358266838,-522.262451,0.00039627,14]
[359817585,1746358266848,-165.499178,0.00039627,2]
[359817586,1746358266857,-165.499178,0.00039627,2]
[359817587,1746358266866,-165.499178,0.00039627,2]
[359817588,1746358266876,-165.499178,0.00039627,2]
[359817589,1746358266885,-165.499178,0.00039627,2]
[359817590,1746358266895,-165.499178,0.00039627,2]
[359817591,1746358266904,-165.499178,0.00039627,2]
[359817592,1746358266915,-165.499178,0.00039627,2]
[359817593,1746358266925,-165.499178,0.00039627,2]
[359817594,1746358266936,-165.499176,0.00039627,2]
[359817595,1746358266946,-180.706184,0.00039627,2]
[359817596,1746358266955,-162.584356,0.00039627,14]
[359817597,1746358266965,-270930.56050307,0.00039628,20]
[359817598,1746358267369,-57.38130756,0.00038904,15]
[359817621,1746359225100,-1220.6014657,0.00025105,2]
[359817622,1746359225120,-285.15755883,0.00025205,2]
[359817623,1746359225139,-218.36637992,0.00027297,2]
[359817624,1746359225159,-171.23896378,0.00027397,2]
[359817625,1746359238138,-251.16163133,0.00027397,2]
[359817632,1746359362255,-150.0,0.00025297,2]
[359817633,1746359362277,-135.00331599,0.00027397,2]
[359817634,1746359370100,-18.0701789,0.00027397,2]
[359817635,1746359370121,-159.13584981,0.00029204,2]
[359817636,1746359370141,-2436.6918948,0.00029304,2]
[359817637,1746359370163,-1200.0,0.0002938,2]
[359817638,1746359370184,-247.6036293,0.00029381,2]
[359817639,1746359370334,-561.8057015,0.00029467,2]
[359817640,1746359370363,-300.0,0.00029899,2]
[359817667,1746359432335,-183.827282,0.00030522,2]
[359817668,1746359432345,-212.02366811,0.000309,23]
[359817669,1746359432355,-500.0,0.00031781,2]
[359817670,1746359432368,-300.0,0.00032224,3]
[359817671,1746359432377,-400.0,0.00032224,3]
[359817672,1746359432394,-400.0,0.00032224,3]
[359817673,1746359432409,-1600.0,0.00032224,3]
[359817674,1746359432418,-500.0,0.00032225,2]
[359817675,1746359432429,-500.0,0.00032225,2]
[359817676,1746359432439,-500.0,0.00032225,2]
[359817677,1746359432448,-500.0,0.00032225,2]
[359817678,1746359432458,-500.0,0.00032225,2]
[359817679,1746359432467,-500.0,0.00032225,2]
[359817680,1746359432477,-500.0,0.00032225,2]
[359817681,1746359432487,-500.0,0.00032225,2]
[359817682,1746359432497,-500.0,0.00032225,2]
[359817683,1746359432506,-500.0,0.00032225,2]
[359817684,1746359432516,-500.0,0.00032225,2]
[359817685,1746359432526,-500.0,0.00032225,2]
[359817686,1746359432536,-347.82169611,0.00032225,2]
[359817687,1746359432545,-500.0,0.00032225,2]
[359817688,1746359432555,-500.0,0.00032225,2]
[359817689,1746359432565,-500.0,0.00032225,2]
[359817690,1746359432574,-500.0,0.00032225,2]
[359817691,1746359432584,-50000.0,0.00032226,2]
[359817692,1746359432593,-284.5,0.00032256,30]
[359817693,1746359432603,-378.74280447,0.00032391,2]
[359817694,1746359432612,-19794.3978491,0.00032492,2]
[359817695,1746359432622,-365.25969652,0.00032499,2]
[359817696,1746359432631,-160.0,0.00032793,2]
[359817697,1746359432641,-160.0,0.00032793,2]
[359817698,1746359432650,-240.69363076,0.00032877,2]
[359817699,1746359432660,-1000.0,0.00032877,2]
[359817700,1746359432670,-575.47409,0.00033165,2]
[359817701,1746359432680,-378.74280447,0.00033421,2]
[359817702,1746359432689,-1500.0,0.00033973,2]
[359817703,1746359432700,-378.74280447,0.00034451,2]
[359817704,1746359432709,-507.39909851,0.0003465,5]
[359817705,1746359432719,-506.47258563,0.0003465,5]
[359817706,1746359432729,-296.0,0.00034651,3]
[359817707,1746359432742,-320.0,0.00034651,3]
[359817708,1746359432751,-1500.0,0.00035068,2]
[359817709,1746359432760,-1026.48,0.000353,7]
[359817710,1746359432770,-378.74280447,0.00035481,2]
[359817711,1746359432780,-198.882131,0.00035679,2]
[359817712,1746359432790,-160.0,0.00036271,2]
[359817713,1746359432800,-708.9279623,0.0003629,2]
[359817714,1746359432810,-9269.39164185,0.00036357,3]
[359817715,1746359432820,-5000.0,0.00036367,2]
[359817716,1746359432830,-378.74280447,0.0003651,2]
[359817717,1746359432840,-160.0,0.00036583,2]
[359817718,1746359432850,-817.66,0.00036758,3]
[359817719,1746359432860,-160.0,0.00036758,3]
[359817720,1746359432870,-625.76345959,0.00036758,3]
[359817721,1746359432880,-707.0,0.00036768,2]
[359817722,1746359432891,-2244.0,0.00036768,2]
[359817723,1746359432900,-403.0,0.00036768,2]
[359817724,1746359432910,-2666.8,0.00036768,2]
[359817725,1746359432920,-2666.8,0.00036768,2]
[359817726,1746359432930,-2666.8,0.00036768,2]
[359817727,1746359432939,-2666.8,0.00036768,2]
[359817728,1746359432950,-2666.8,0.00036768,2]
[359817729,1746359432960,-2666.8,0.00036768,2]
[359817730,1746359432969,-2666.8,0.00036768,2]
[359817731,1746359432979,-2666.8,0.00036768,2]
[359817732,1746359432989,-2666.8,0.00036768,2]
[359817733,1746359432998,-2666.8,0.00036768,2]
[359817734,1746359433012,-2666.8,0.00036768,2]
[359817735,1746359433022,-2666.8,0.00036768,2]
[359817736,1746359433031,-9269.39164185,0.0003679,3]
[359817737,1746359433041,-500.0,0.000368,5]
[359817738,1746359433050,-500.0,0.000368,5]
[359817739,1746359433060,-503.35188038,0.000368,5]
[359817740,1746359433070,-253.96,0.000373,2]
[359817741,1746359433080,-378.74280447,0.0003754,2]
[359817742,1746359433090,-1503.7813706,0.00037645,4]
[359817743,1746359433099,-600.0,0.00038042,2]
[359817744,1746359433109,-578.93781165,0.00038542,2]
[359817745,1746359433118,-378.74280447,0.0003857,2]
[359817746,1746359433128,-500.0,0.0003863,10]
[359817747,1746359433138,-18538.7832837,0.00038794,3]
[359817748,1746359433148,-1026.48,0.000388,7]
[359817749,1746359433158,-49577.12252599,0.00038804,2]
[359817750,1746359433183,-43089.31776531,0.00038804,2]
[359817751,1746359433193,-578.93781165,0.00038903,2]
[359817752,1746359433202,-403.08636555,0.00038904,15]
[359817753,1746359433212,-400.0,0.00038904,15]
[359817754,1746359433222,-400.0,0.00038904,15]
[359817755,1746359433231,-400.0,0.00038904,15]
[359817756,1746359433242,-400.0,0.00038904,15]
[359817757,1746359433251,-189.84580965,0.00038904,15]
[359817758,1746359433261,-400.0,0.00038904,15]
[359817759,1746359433270,-400.0,0.00038904,15]
[359817760,1746359433278,-400.0,0.00038904,15]
[359817761,1746359433419,-291.83,0.00038904,15]
[359817762,1746359433433,-400.0,0.00038904,15]
[359817763,1746359433443,-400.0,0.00038904,15]
[359817764,1746359433453,-400.0,0.00038904,15]
[359817765,1746359433463,-400.0,0.00038904,15]
[359817766,1746359433472,-400.0,0.00038904,15]
[359817767,1746359433483,-275.34861187,0.00038904,15]
[359817768,1746359433493,-500.0,0.00038904,15]
[359817769,1746359433503,-500.0,0.00038904,15]
[359817770,1746359433512,-515.23019811,0.00038904,15]
[359817771,1746359433522,-400.0,0.00038904,15]
[359817772,1746359433532,-400.0,0.00038904,15]
[359817773,1746359433542,-400.0,0.00038904,15]
[359817774,1746359433551,-400.0,0.00038904,15]
[359817775,1746359433561,-400.0,0.00038904,15]
[359817776,1746359433571,-400.0,0.00038904,15]
[359817777,1746359433581,-400.0,0.00038904,15]
[359817778,1746359433590,-400.0,0.00038904,15]
[359817779,1746359433600,-400.0,0.00038904,15]
[359817780,1746359433609,-400.0,0.00038904,15]
[359817781,1746359433619,-400.0,0.00038904,15]
[359817782,1746359433630,-308.89353558,0.00038904,15]
[359817783,1746359433640,-400.0,0.00038904,15]
[359817784,1746359433649,-431.04,0.00038904,15]
[359817785,1746359433659,-400.0,0.00038904,15]
[359817786,1746359433668,-400.0,0.00038904,15]
[359817787,1746359433678,-400.0,0.00038904,15]
[359817788,1746359433688,-223.88,0.00038904,15]
[359817789,1746359433698,-259.61482753,0.00038904,15]
[359817790,1746359433708,-501.3577796,0.00038904,15]
[359817791,1746359433718,-400.0,0.00038904,15]
[359817792,1746359433727,-172.34542243,0.00038904,15]
[359817793,1746359433737,-400.0,0.00038904,15]
[359817794,1746359433746,-500.0,0.00038904,15]
[359817795,1746359433755,-400.0,0.00038904,15]
[359817796,1746359433765,-400.0,0.00038904,15]
[359817797,1746359433775,-400.0,0.00038904,15]
[359817798,1746359433784,-400.0,0.00038904,15]
[359817799,1746359433794,-400.0,0.00038904,15]
[359817800,1746359433803,-400.0,0.00038904,15]
[359817801,1746359433812,-247.98368895,0.00038904,15]
[359817802,1746359433822,-400.0,0.00038904,15]
[359817803,1746359433831,-400.0,0.00038904,15]
[359817804,1746359433841,-500.0,0.00038904,15]
[359817805,1746359433852,-400.0,0.00038904,15]
[359817806,1746359433862,-400.0,0.00038904,15]
[359817807,1746359433871,-500.0,0.00038904,15]
[359817808,1746359433881,-500.0,0.00038904,15]
[359817809,1746359433890,-400.0,0.00038904,15]
[359817810,1746359433900,-400.0,0.00038904,15]
[359817811,1746359433911,-400.0,0.00038904,15]
[359817812,1746359433922,-505.63193085,0.00038904,15]
[359817813,1746359433931,-400.0,0.00038904,15]
[359817814,1746359433942,-400.0,0.00038904,15]
[359817815,1746359433951,-525.12773218,0.00038904,15]
[359817816,1746359433961,-400.0,0.00038904,15]
[359817817,1746359433971,-400.0,0.00038904,15]
[359817818,1746359433982,-500.0,0.00038904,15]
[359817819,1746359433992,-400.0,0.00038904,15]
[359817820,1746359434002,-400.0,0.00038904,15]
[359817821,1746359434012,-400.0,0.00038904,15]
[359817822,1746359434021,-400.0,0.00038904,15]
[359817823,1746359434031,-341.01,0.00038904,15]
[359817824,1746359434041,-400.0,0.00038904,15]
[359817825,1746359434051,-500.0,0.00038904,15]
[359817826,1746359434060,-400.0,0.00038904,15]
[359817827,1746359434070,-400.0,0.00038904,15]
[359817828,1746359434080,-400.0,0.00038904,15]
[359817829,1746359434089,-511.12,0.00038904,15]
[359817830,1746359434098,-400.0,0.00038904,15]
[359817831,1746359434108,-400.0,0.00038904,15]
[359817832,1746359434118,-433.5591973,0.00038904,15]
[359817833,1746359434127,-400.0,0.00038904,15]
[359817834,1746359434137,-400.0,0.00038904,15]
[359817835,1746359434146,-400.0,0.00038904,15]
[359817836,1746359434156,-400.0,0.00038904,15]
[359817837,1746359434166,-400.0,0.00038904,15]
[359817838,1746359434176,-400.0,0.00038904,15]
[359817839,1746359434186,-400.0,0.00038904,15]
[359817840,1746359434195,-203.16,0.00038904,15]
[359817841,1746359434205,-501.02764383,0.00038904,15]
[359817842,1746359434214,-400.0,0.00038904,15]
[359817843,1746359434223,-400.0,0.00038904,15]
[359817844,1746359434232,-447.49869662,0.00038904,15]
[359817845,1746359434242,-400.0,0.00038904,15]
[359817846,1746359434251,-500.0,0.00038904,15]
[359817847,1746359434262,-400.0,0.00038904,15]
[359817848,1746359434272,-400.0,0.00038904,15]
[359817849,1746359434282,-400.0,0.00038904,15]
[359817850,1746359434292,-305.36663427,0.00038904,15]
[359817851,1746359434303,-400.0,0.00038904,15]
[359817852,1746359434314,-500.0,0.00038904,15]
[359817853,1746359434324,-400.0,0.00038904,15]
[359817854,1746359434334,-549.46083032,0.00038904,15]
[359817855,1746359434350,-400.0,0.00038904,15]
[359817856,1746359434369,-400.0,0.00038904,15]
[359817857,1746359434383,-400.0,0.00038904,15]
[359817858,1746359434397,-221.64610395,0.00038904,15]
[359817859,1746359434411,-400.0,0.00038904,15]
[359817860,1746359434426,-400.0,0.00038904,15]
[359817861,1746359434439,-500.0,0.00038904,15]
[359817862,1746359434456,-400.0,0.00038904,15]
[359817863,1746359434470,-400.0,0.00038904,15]
[359817864,1746359434484,-400.0,0.00038904,15]
[359817865,1746359434498,-266.28,0.00038904,15]
[359817866,1746359434513,-500.0,0.00038904,15]
[359817867,1746359434525,-400.0,0.00038904,15]
[359817868,1746359434538,-400.0,0.00038904,15]
[359817869,1746359434551,-500.0,0.00038904,15]
[359817870,1746359434564,-400.0,0.00038904,15]
[359817871,1746359434576,-400.0,0.00038904,15]
[359817872,1746359434590,-500.0,0.00038904,15]
[359817873,1746359434603,-400.0,0.00038904,15]
[359817874,1746359434616,-536.31678895,0.00038904,15]
[359817875,1746359434626,-400.0,0.00038904,15]
[359817876,1746359434639,-400.0,0.00038904,15]
[359817877,1746359434650,-200.0,0.00038904,15]
[359817878,1746359434662,-400.0,0.00038904,15]
[359817879,1746359434676,-400.0,0.00038904,15]
[359817880,1746359434689,-400.0,0.00038904,15]
[359817881,1746359434703,-500.62427233,0.00038904,15]
[359817882,1746359434716,-201.99125541,0.00038904,15]
[359817883,1746359434729,-500.86131784,0.00038904,15]
[359817884,1746359434743,-400.0,0.00038904,15]
[359817885,1746359434753,-400.0,0.00038904,15]
[359817886,1746359434764,-358.91961652,0.00038904,15]
[359817887,1746359434775,-400.0,0.00038904,15]
[359817888,1746359434787,-400.0,0.00038904,15]
[359817889,1746359434800,-400.0,0.00038904,15]
[359817890,1746359434813,-202.04,0.00038904,15]
[359817891,1746359434825,-400.0,0.00038904,15]
[359817892,1746359434836,-400.0,0.00038904,15]
[359817893,1746359434848,-310.69512936,0.00038904,15]
[359817894,1746359434860,-400.0,0.00038904,15]
[359817895,1746359434873,-502.38133378,0.00038904,15]
[359817896,1746359434884,-500.0,0.00038904,15]
[359817897,1746359434895,-400.0,0.00038904,15]
[359817898,1746359434921,-400.0,0.00038904,15]
[359817899,1746359434932,-300.0,0.00038904,15]
[359817900,1746359434945,-500.0,0.00038904,15]
[359817901,1746359434956,-400.0,0.00038904,15]
[359817902,1746359434968,-400.0,0.00038904,15]
[359817903,1746359434981,-500.0,0.00038904,15]
[359817904,1746359434992,-400.0,0.00038904,15]
[359817905,1746359435003,-400.0,0.00038904,15]
[359817906,1746359435015,-467.36,0.00038904,15]
[359817907,1746359435026,-500.0,0.00038904,15]
[359817908,1746359435039,-500.0,0.00038904,15]
[359817909,1746359435050,-400.0,0.00038904,15]
[359817910,1746359435062,-400.0,0.00038904,15]
[359817911,1746359435073,-400.0,0.00038904,15]
[359817912,1746359435084,-400.0,0.00038904,15]
[359817913,1746359435095,-400.0,0.00038904,15]
[359817914,1746359435106,-400.0,0.00038904,15]
[359817915,1746359435118,-400.0,0.00038904,15]
[359817916,1746359435131,-400.0,0.00038904,15]
[359817917,1746359435143,-400.0,0.00038904,15]
[359817918,1746359435154,-400.0,0.00038904,15]
[359817919,1746359435165,-384.03445312,0.00038904,15]
[359817920,1746359435185,-400.0,0.00038904,15]
[359817921,1746359435203,-500.0,0.00038904,15]
[359817922,1746359435218,-400.0,0.00038904,15]
[359817923,1746359435232,-217.30075485,0.00038904,15]
[359817924,1746359435246,-400.0,0.00038904,15]
[359817925,1746359435259,-500.0,0.00038904,15]
[359817926,1746359435273,-400.0,0.00038904,15]
[359817927,1746359435285,-400.0,0.00038904,15]
[359817928,1746359435298,-300.0,0.00038904,15]
[359817929,1746359435311,-400.0,0.00038904,15]
[359817930,1746359435323,-400.0,0.00038904,15]
[359817931,1746359435335,-400.0,0.00038904,15]
[359817932,1746359435347,-400.0,0.00038904,15]
[359817933,1746359435359,-400.0,0.00038904,15]
[359817934,1746359435374,-400.0,0.00038904,15]
[359817935,1746359435386,-520.24,0.00038904,15]
[359817936,1746359435397,-400.0,0.00038904,15]
[359817937,1746359435410,-400.0,0.00038904,15]
[359817938,1746359435423,-400.0,0.00038904,15]
[359817939,1746359435434,-400.0,0.00038904,15]
[359817940,1746359435448,-500.0,0.00038904,15]
[359817941,1746359435460,-400.0,0.00038904,15]
[359817942,1746359435472,-400.0,0.00038904,15]
[359817943,1746359435485,-300.0,0.00038904,15]
[359817944,1746359435497,-400.0,0.00038904,15]
[359817945,1746359435509,-400.0,0.00038904,15]
[359817946,1746359435648,-400.0,0.00038904,15]
[359817947,1746359435666,-400.0,0.00038904,15]
[359817948,1746359435675,-400.0,0.00038904,15]
[359817949,1746359435685,-400.0,0.00038904,15]
[359817950,1746359435694,-400.0,0.00038904,15]
[359817951,1746359435704,-200.0,0.00038904,15]
[359817952,1746359435713,-400.0,0.00038904,15]
[359817953,1746359435723,-400.0,0.00038904,15]
[359817954,1746359435733,-428.58,0.00038904,15]
[359817955,1746359435744,-400.0,0.00038904,15]
[359817956,1746359435754,-400.0,0.00038904,15]
[359817957,1746359435763,-400.0,0.00038904,15]
[359817958,1746359435773,-400.0,0.00038904,15]
[359817959,1746359435782,-504.40029505,0.00038904,15]
[359817960,1746359435792,-400.0,0.00038904,15]
[359817961,1746359435802,-400.0,0.00038904,15]
[359817962,1746359435811,-400.0,0.00038904,15]
[359817963,1746359435821,-403.4259321,0.00038904,15]
[359817964,1746359435831,-400.0,0.00038904,15]
[359817965,1746359435841,-402.60243514,0.00038904,15]
[359817966,1746359435850,-400.0,0.00038904,15]
[359817967,1746359435860,-400.0,0.00038904,15]
[359817968,1746359435870,-177.58028268,0.00038904,15]
[359817969,1746359435879,-400.0,0.00038904,15]
[359817970,1746359435889,-400.0,0.00038904,15]
[359817971,1746359435898,-400.0,0.00038904,15]
[359817972,1746359435907,-400.0,0.00038904,15]
[359817973,1746359435916,-400.0,0.00038904,15]
[359817974,1746359435926,-400.0,0.00038904,15]
[359817975,1746359435935,-400.0,0.00038904,15]
[359817976,1746359435944,-500.0,0.00038904,15]
[359817977,1746359435954,-400.0,0.00038904,15]
[359817978,1746359435964,-400.0,0.00038904,15]
[359817979,1746359435973,-400.0,0.00038904,15]
[359817980,1746359435983,-400.0,0.00038904,15]
[359817981,1746359435992,-400.0,0.00038904,15]
[359817982,1746359436002,-400.0,0.00038904,15]
[359817983,1746359436012,-400.0,0.00038904,15]
[359817984,1746359436021,-400.0,0.00038904,15]
[359817985,1746359436031,-500.76372576,0.00038904,15]
[359817986,1746359436040,-400.0,0.00038904,15]
[359817987,1746359436050,-400.0,0.00038904,15]
[359817988,1746359436060,-208.46843917,0.00038904,15]
[359817989,1746359436070,-400.0,0.00038904,15]
[359817990,1746359436079,-400.0,0.00038904,15]
[359817991,1746359436089,-400.0,0.00038904,15]
[359817992,1746359436099,-458.77764893,0.00038904,15]
[359817993,1746359436108,-400.0,0.00038904,15]
[359817994,1746359436118,-301.02711361,0.00038904,15]
[359817995,1746359436128,-400.0,0.00038904,15]
[359817996,1746359436138,-235.3132225,0.00038904,15]
[359817997,1746359436147,-400.0,0.00038904,15]
[359817998,1746359436157,-400.0,0.00038904,15]